bitfinex/quotes_BTCUSD_20250617
["timestamp","ask_amount","ask_price","bid_price","bid_amount"]
[1750180794449,2.15441516,103810.0,103800.0,6e-05]
[1750180794668,2.15441516,103810.0,103760.0,0.0627]
[1750180794669,0.21200667,103770.0,103760.0,0.0627]
[1750180794884,0.19273393,103770.0,103760.0,0.1927525]
[1750180795112,0.22164243,103770.0,103760.0,0.26578993]
[1750180795335,0.23127977,103770.0,103760.0,0.27542727]
[1750180795547,0.22164289,103770.0,103760.0,0.37162087]
[1750180795769,0.23127949,103770.0,103760.0,0.35234665]
[1750180795978,0.23437113,103770.0,103760.0,0.43657087]
[1750180796187,0.23437113,103770.0,103760.0,0.35234665]
[1750180796403,0.2247349,103770.0,103760.0,0.34270931]
[1750180796654,0.2257349,103770.0,103760.0,0.26578993]
[1750180797108,0.2257349,103770.0,103760.0,0.28506452]
[1750180797323,0.2257349,103770.0,103760.0,0.2561525]
[1750180797542,0.21609858,103770.0,103760.0,0.0634]
[1750180797762,0.61724664,103770.0,103740.0,0.26964401]
[1750180797982,0.61319215,103750.0,103740.0,0.15924176]
[1750180798230,0.62283051,103750.0,103740.0,0.063]
[1750180798443,0.62283051,103750.0,103740.0,0.27506834]
[1750180798444,0.22168617,103750.0,103740.0,0.27506834]
[1750180798695,0.22168617,103750.0,103740.0,0.27506843]
[1750180798908,0.22168617,103750.0,103740.0,0.063]
[1750180799090,0.22168617,103750.0,103740.0,0.36319874]
[1750180799091,0.0192757,103750.0,103740.0,0.36319874]
[1750180799307,0.21202681,103760.0,103750.0,0.24364809]
[1750180799535,0.22166462,103760.0,103750.0,0.0316]
[1750180799747,0.22166462,103760.0,103750.0,0.24364809]
[1750180799962,0.22166462,103760.0,103750.0,0.27594799]
[1750180800178,0.21202654,103760.0,103750.0,0.27594809]
[1750180800390,0.00901367,103760.0,103750.0,0.29522454]
[1750180800681,0.00901367,103760.0,103750.0,0.30588072]
[1750180800682,0.22104076,103760.0,103750.0,0.30588072]
[1750180800902,0.23067764,103760.0,103750.0,0.09383291]
[1750180801103,0.23067838,103760.0,103750.0,0.25599436]
[1750180801288,0.20176617,103760.0,103750.0,0.0639]
[1750180801599,0.20176617,103760.0,103740.0,0.16034176]
[1750180801600,0.20240954,103750.0,103740.0,0.16034176]
[1750180801862,0.20240954,103750.0,103730.0,0.25680825]
[1750180801863,0.2120676,103740.0,103730.0,0.25680825]
[1750180802108,0.23134562,103740.0,103730.0,0.16988217]
[1750180802337,0.23134562,103740.0,103730.0,0.53445042]
[1750180802572,0.00963874,103740.0,103730.0,0.58057664]
[1750180802805,0.02891658,103740.0,103730.0,0.59985625]
[1750180803038,0.23134665,103740.0,103730.0,0.28572919]
[1750180803331,0.22170764,103740.0,103730.0,0.064]
[1750180803608,0.22170764,103740.0,103720.0,0.26721788]
[1750180803609,0.00963966,103730.0,103720.0,0.26721788]
[1750180803848,0.2313683,103730.0,103720.0,0.54486061]
[1750180804067,0.2313682,103730.0,103720.0,0.54486061]
[1750180804309,0.24100861,103730.0,103720.0,0.55450148]
[1750180804549,0.61322932,103730.0,103710.0,0.06]
[1750180804738,0.00964162,103710.0,103700.0,0.45435032]
[1750180805043,0.21212602,103720.0,103710.0,0.27307255]
[1750180805279,0.20248468,103720.0,103710.0,0.20263038]
[1750180805498,0.0096405,103720.0,103710.0,0.29235514]
[1750180805748,0.01928016,103730.0,103720.0,0.25185002]
[1750180805978,0.27128882,103730.0,103720.0,0.24220924]
[1750180806463,0.25200866,103730.0,103720.0,0.0301]
[1750180806705,0.20246818,103720.0,103710.0,0.51201244]
[1750180806947,0.20246818,103720.0,103710.0,0.45597417]
[1750180806948,0.21210924,103720.0,103710.0,0.45597417]
[1750180807205,0.22175002,103720.0,103710.0,0.45597435]
[1750180807454,0.22175002,103720.0,103710.0,0.46561615]
[1750180807716,0.22475002,103720.0,103710.0,0.46561615]
[1750180808480,0.22475002,103720.0,103710.0,0.23416287]
[1750180808727,0.20546818,103720.0,103710.0,0.37435047]
[1750180808970,0.003,103720.0,103710.0,0.50962499]
[1750180809218,0.01264069,103720.0,103710.0,0.50962499]
[1750180809457,0.003,103720.0,103710.0,1.02628782]
[1750180809961,0.009,103720.0,103710.0,1.38082867]
[1750180810192,0.006,103720.0,103710.0,1.38082867]
[1750180810664,0.006,103720.0,103710.0,0.9604076]
[1750180810907,0.006,103720.0,103710.0,1.38082867]
[1750180811172,0.008,103720.0,103710.0,1.38078867]
[1750180811659,0.002,103720.0,103710.0,1.38078867]
[1750180811893,0.006,103720.0,103710.0,1.38078867]
[1750180813529,0.23132401,103750.0,103710.0,1.38078867]
[1750180813746,0.01927598,103750.0,103740.0,0.261646]
[1750180813968,0.21202901,103760.0,103750.0,0.20240944]
[1750180814182,0.24021915,103760.0,103750.0,0.21204771]
[1750180814398,0.20240907,103750.0,103740.0,0.48535509]
[1750180814614,0.01927607,103750.0,103740.0,0.46472628]
[1750180814843,0.02891443,103750.0,103740.0,0.46472628]
[1750180815065,0.03855224,103750.0,103740.0,0.53047656]
[1750180815292,0.03855224,103750.0,103740.0,0.53061943]
[1750180815517,0.58206523,103770.0,103760.0,0.20239003]
[1750180815739,0.22166359,103760.0,103750.0,0.2120479]
[1750180815973,0.22166434,103760.0,103750.0,0.21204799]
[1750180816197,0.01927384,103760.0,103750.0,0.46292056]
[1750180816420,0.02891109,103760.0,103750.0,0.49382056]
[1750180816644,0.02891109,103760.0,103750.0,0.52582056]
[1750180816854,0.03854852,103760.0,103750.0,0.52582056]
[1750180817072,0.02891109,103760.0,103750.0,0.52582056]
[1750180817292,0.02891109,103760.0,103750.0,0.46586397]
[1750180817293,0.028911,103760.0,103750.0,0.46586397]
[1750180817518,0.24293846,103760.0,103750.0,0.45622607]
[1750180817790,0.01927608,103750.0,103740.0,0.37265223]
[1750180818047,0.01927608,103750.0,103740.0,0.54425223]
[1750180818312,0.01927561,103750.0,103740.0,0.54425223]
[1750180818553,0.00963771,103750.0,103740.0,0.61795511]
[1750180818771,0.03855215,103750.0,103740.0,0.54425223]
[1750180819042,0.0501907,103750.0,103740.0,0.37265269]
[1750180819291,0.63446869,103750.0,103740.0,0.00014287]
[1750180819780,0.63646869,103750.0,103740.0,0.00014287]
[1750180820459,0.68374869,103750.0,103740.0,0.00014287]
[1750180820708,0.26332762,103750.0,103740.0,0.00014287]
[1750180821388,0.26432762,103750.0,103740.0,0.00014287]
[1750180821621,0.29762762,103750.0,103740.0,0.00014287]
[1750180821869,0.26432762,103750.0,103740.0,0.00014287]
[1750180822084,0.26732762,103750.0,103740.0,0.00014287]
[1750180823402,0.26732762,103750.0,103740.0,0.19293253]
[1750180823631,0.25768944,103750.0,103740.0,0.00014287]
[1750180824057,0.67811051,103750.0,103740.0,0.00014287]
[1750180824279,0.25768944,103750.0,103740.0,0.00014287]
[1750180824720,0.67811051,103750.0,103740.0,0.00014287]
[1750180824983,0.83835227,103750.0,103740.0,0.00014287]
[1750180825922,0.83235227,103750.0,103740.0,0.00014287]
[1750180826170,0.19282684,103720.0,103710.0,0.45478301]
[1750180826400,0.00964059,103720.0,103710.0,0.62808676]
[1750180826624,0.22174945,103720.0,103710.0,0.57479575]
[1750180826877,0.01928146,103720.0,103710.0,0.57479575]
[1750180827109,0.22174945,103720.0,103710.0,0.40327575]
[1750180827330,0.02892261,103720.0,103710.0,0.49783637]
[1750180827562,0.21210495,103730.0,103710.0,0.47855267]
[1750180827791,0.22174536,103730.0,103710.0,0.47855267]
[1750180828016,0.0096405,103720.0,103710.0,0.57470189]
[1750180828482,0.02028119,103720.0,103710.0,0.57470189]
[1750180828728,0.22174974,103720.0,103710.0,0.14813091]
[1750180828974,0.22174974,103720.0,103710.0,0.15513091]
[1750180829159,0.22474974,103720.0,103710.0,0.14813091]
[1750180829428,0.21510905,103720.0,103710.0,0.14813091]
[1750180829656,0.22575039,103720.0,103710.0,0.14813091]
[1750180830573,0.21610905,103720.0,103710.0,0.14813091]
[1750180830765,0.22574965,103720.0,103710.0,0.14813091]
[1750180831101,0.23539089,103720.0,103710.0,0.14813091]
[1750180831340,0.24503223,103720.0,103710.0,0.14813091]
[1750180831579,0.21610886,103720.0,103710.0,0.14813091]
[1750180831813,0.2257502,103720.0,103710.0,0.18013091]
[1750180832026,0.02328146,103720.0,103710.0,0.18013091]
[1750180832283,0.2353907,103720.0,103710.0,0.18013091]
[1750180832519,0.21610924,103720.0,103710.0,0.00014261]
[1750180832749,0.01364078,103720.0,103710.0,0.06254261]
[1750180833015,0.0136405,103720.0,103710.0,0.06254261]
[1750180833239,0.03292206,103720.0,103710.0,0.28431372]
[1750180833451,0.004,103720.0,103710.0,0.39019775]
[1750180833668,0.004,103720.0,103710.0,0.90676804]
[1750180833908,0.004,103720.0,103710.0,0.92130889]
[1750180834991,0.003,103720.0,103710.0,0.50088782]
[1750180835272,0.003,103720.0,103710.0,0.82515967]
[1750180835477,0.01927942,103730.0,103720.0,0.28684974]
[1750180835696,0.0385594,103730.0,103720.0,0.5544915]
[1750180836128,0.24100768,103730.0,103720.0,0.3830915]
[1750180836365,0.24100768,103730.0,103720.0,0.20246808]
[1750180836629,0.02891955,103730.0,103720.0,0.39314974]
[1750180836883,0.21206992,103740.0,103730.0,0.22172872]
[1750180837100,0.28062804,103740.0,103730.0,0.22172882]
[1750180837355,0.27098912,103740.0,103730.0,0.22172882]
[1750180837590,0.22170912,103740.0,103730.0,0.22172891]
[1750180837830,0.00798912,103740.0,103730.0,0.22172891]
[1750180838060,0.20243044,103740.0,103730.0,0.28444854]
[1750180838514,0.20243044,103740.0,103730.0,0.21208878]
[1750180838756,0.19277108,103750.0,103740.0,0.19278966]
[1750180839017,0.20238984,103760.0,103750.0,0.19277108]
[1750180839229,0.04143456,103790.0,103780.0,0.0096353]
[1750180839474,0.28056035,103790.0,103780.0,0.21487945]
[1750180839704,0.21196609,103790.0,103780.0,0.23415051]
[1750180839949,0.21198614,103780.0,103770.0,0.23547044]
[1750180840171,0.21198641,103780.0,103770.0,0.00963669]
[1750180840406,0.22162208,103780.0,103770.0,0.22164316]
[1750180840616,0.02890562,103780.0,103770.0,0.2626792]
[1750180840828,0.23125655,103780.0,103770.0,0.2626792]
[1750180841046,0.24089222,103780.0,103770.0,0.26267948]
[1750180841274,9.169e-05,103790.0,103780.0,0.21198641]
[1750180841529,9.169e-05,103790.0,103780.0,0.45794152]
[1750180841742,9.169e-05,103790.0,103780.0,0.45994152]
[1750180841959,0.00972569,103790.0,103780.0,0.45794152]
[1750180842179,0.02899415,103790.0,103780.0,0.45794152]
[1750180842916,0.02435978,103790.0,103780.0,0.45794152]
[1750180843156,0.00509169,103790.0,103780.0,0.54092473]
[1750180843393,0.00509169,103790.0,103780.0,0.55418328]
[1750180844545,0.02436006,103790.0,103780.0,0.55418328]
[1750180845252,0.03399443,103790.0,103780.0,0.55418328]
[1750180845693,0.07484363,103790.0,103780.0,0.16124176]
[1750180845912,0.09411247,103790.0,103770.0,0.39667393]
[1750180846127,0.01926828,103790.0,103780.0,0.0327]
[1750180846379,0.23123418,103790.0,103780.0,0.0642]
[1750180846606,0.02890274,103790.0,103780.0,0.0642]
[1750180846830,0.009634,103790.0,103780.0,0.42815535]
[1750180847051,0.03090265,103790.0,103780.0,0.46669691]
[1750180847267,0.02126818,103790.0,103780.0,0.49054091]
[1750180847486,0.011634,103790.0,103780.0,0.49054091]
[1750180847704,0.02126809,103790.0,103780.0,0.49054091]
[1750180847943,0.002,103790.0,103780.0,0.58678267]
[1750180848169,0.002,103790.0,103780.0,1.00720374]
[1750180848391,0.00963224,103810.0,103800.0,0.25237883]
[1750180848623,0.01926466,103810.0,103800.0,0.45357883]
[1750180848843,0.01926326,103820.0,103810.0,0.22155767]
[1750180849069,0.27057632,103820.0,103810.0,0.23119009]
[1750180849308,0.22155692,103810.0,103800.0,0.43431194]
[1750180849520,0.22155692,103810.0,103800.0,0.45357874]
[1750180849734,0.22155692,103810.0,103800.0,0.45957874]
[1750180849954,0.22155692,103810.0,103800.0,0.44994548]
[1750180849955,0.01926456,103810.0,103800.0,0.44994548]
[1750180850197,0.24082279,103810.0,103800.0,0.39877892]
[1750180850436,0.02889726,103810.0,103800.0,0.40841227]
[1750180850696,0.21192534,103810.0,103800.0,0.006]
[1750180850903,0.63234641,103810.0,103800.0,0.17716]
[1750180851125,0.63234641,103810.0,103800.0,0.015]
[1750180851340,0.86576641,103810.0,103800.0,0.015]
[1750180853347,1.30200817,103810.0,103800.0,0.015]
[1750180853816,1.33094817,103810.0,103800.0,0.015]
[1750180855163,0.8192471,103810.0,103800.0,0.015]
[1750180856307,0.6800671,103810.0,103800.0,0.015]
[1750180856526,1.35360817,103810.0,103800.0,0.015]
[1750180856757,0.9331871,103810.0,103800.0,0.015]
[1750180856947,1.35360817,103810.0,103800.0,0.015]
[1750180858329,0.9331871,103810.0,103800.0,0.015]
[1750180858546,1.35360817,103810.0,103800.0,0.015]
[1750180858764,1.38254717,103810.0,103800.0,0.015]
[1750180860749,1.31764717,103810.0,103800.0,0.015]
[1750180861651,0.8972261,103810.0,103800.0,0.015]
[1750180861893,0.55192534,103810.0,103800.0,0.015]
[1750180862093,0.22155692,103810.0,103800.0,0.28111213]
[1750180862351,0.22155692,103810.0,103800.0,0.31001283]
[1750180862571,0.26096515,103810.0,103800.0,0.0788]
[1750180862792,0.26096515,103810.0,103800.0,0.0477]
[1750180863006,0.25133245,103810.0,103800.0,0.015]
[1750180863682,0.21192496,103810.0,103800.0,0.02463372]
[1750180863900,0.4222919,103810.0,103800.0,0.27881194]
[1750180864113,0.4415572,103810.0,103800.0,0.28307901]
[1750180864345,0.23119018,103810.0,103800.0,0.0635]
[1750180864622,0.26096543,103810.0,103800.0,0.002]
[1750180864835,0.6813865,103810.0,103800.0,0.001]
[1750180865049,0.26096543,103810.0,103800.0,0.001]
[1750180865259,0.26196543,103810.0,103800.0,0.001]
[1750180866807,0.25233264,103810.0,103800.0,0.001]
[1750180867477,0.0384118,103810.0,103800.0,0.001]
[1750180867697,0.23107146,103810.0,103800.0,0.001]
[1750180868150,0.65149253,103810.0,103800.0,0.001]
[1750180868396,1.30203429,103810.0,103800.0,0.001]
[1750180868853,0.84986142,103810.0,103800.0,0.001]
[1750180869078,0.76325264,103810.0,103800.0,0.04293391]
[1750180869300,0.46182341,103810.0,103800.0,0.27764585]
[1750180869518,0.46182341,103810.0,103800.0,0.32432986]
[1750180869519,0.23218991,103810.0,103800.0,0.32432986]
[1750180869739,0.22255795,103810.0,103800.0,0.001]
[1750180869960,0.27059795,103810.0,103800.0,0.001]
[1750180870185,0.27059795,103810.0,103800.0,0.04343391]
[1750180870408,0.27059795,103810.0,103800.0,0.23811213]
[1750180870632,0.25133264,103810.0,103800.0,0.0683]
[1750180870856,0.24169966,103810.0,103800.0,0.003]
[1750180871075,0.24169966,103810.0,103800.0,0.01]
[1750180871549,0.19265966,103810.0,103800.0,0.01]
[1750180871760,0.41257966,103810.0,103800.0,0.01]
[1750180872001,0.41257966,103810.0,103800.0,0.01004]
[1750180872457,0.83300073,103810.0,103800.0,0.01004]
[1750180873123,1.33906016,103810.0,103800.0,0.01004]
[1750180873356,1.96294416,103810.0,103800.0,0.01004]
[1750180873574,1.54252309,103810.0,103800.0,0.01004]
[1750180873791,1.32260309,103810.0,103800.0,0.01004]
[1750180874232,1.54248309,103810.0,103800.0,0.00704]
[1750180874465,1.54348309,103810.0,103800.0,4e-05]
[1750180874687,1.31461659,103810.0,103800.0,0.00304]
[1750180874908,1.53349659,103810.0,103800.0,0.00304]
[1750180876261,1.53348172,103810.0,103800.0,0.00304]
[1750180876475,1.31360172,103810.0,103800.0,0.00304]
[1750180876699,1.53324172,103810.0,103800.0,0.00304]
[1750180876923,1.38324172,103810.0,103800.0,0.00404]
[1750180877188,1.32243345,103810.0,103800.0,0.00404]
[1750180877622,0.68237238,103810.0,103800.0,0.00404]
[1750180877848,0.57944282,103810.0,103800.0,0.00404]
[1750180878070,1.21064109,103810.0,103800.0,0.00404]
[1750180878292,1.21954224,103810.0,103800.0,0.00404]
[1750180878768,1.22621733,103810.0,103800.0,0.00404]
[1750180878979,1.21064109,103810.0,103800.0,0.00404]
[1750180879193,1.21060878,103810.0,103800.0,0.00404]
[1750180879402,1.19280696,103810.0,103800.0,0.00404]
[1750180880305,0.97312696,103810.0,103800.0,0.00404]
[1750180880526,0.60154589,103810.0,103800.0,0.00404]
[1750180880750,9.173e-05,103810.0,103800.0,0.28981874]
[1750180880971,9.173e-05,103810.0,103800.0,0.28581874]
[1750180881433,9.173e-05,103810.0,103800.0,0.29081874]
[1750180881648,0.21201633,103810.0,103800.0,0.28781874]
[1750180881859,0.21201633,103810.0,103800.0,0.28781883]
[1750180882069,0.20238372,103810.0,103800.0,0.28781883]
[1750180882285,0.00972406,103810.0,103800.0,0.29745209]
[1750180882505,0.21201623,103810.0,103800.0,0.29745209]
[1750180882718,0.20238372,103810.0,103800.0,0.29745209]
[1750180882933,0.23128182,103810.0,103800.0,0.26655185]
[1750180883155,0.22164875,103810.0,103800.0,0.27718594]
[1750180883392,0.23528154,103810.0,103800.0,0.29545292]
[1750180883619,0.2352821,103810.0,103800.0,0.28581966]
[1750180883836,0.22564921,103810.0,103800.0,0.30508673]
[1750180884050,0.22564968,103810.0,103800.0,0.06424]
[1750180884261,0.64607075,103810.0,103800.0,0.06424]
[1750180884475,0.26481707,103810.0,103800.0,0.06424]
[1750180884719,0.25518428,103810.0,103800.0,0.06424]
[1750180884952,0.67560535,103810.0,103800.0,4e-05]
[1750180885194,0.25518428,103810.0,103800.0,4e-05]
[1750180885398,0.25518428,103810.0,103800.0,0.03274]
[1750180885620,0.42590418,103810.0,103800.0,0.25611822]
[1750180885839,0.23528201,103810.0,103800.0,0.27538594]
[1750180886065,0.44116912,103810.0,103800.0,0.29465311]
[1750180886293,0.21201614,103810.0,103800.0,0.29565311]
[1750180886509,0.06815648,103810.0,103800.0,0.30528637]
[1750180886725,0.27044875,103810.0,103800.0,0.29565311]
[1750180886945,0.00972397,103810.0,103800.0,0.35412106]
[1750180887176,9.173e-05,103810.0,103800.0,0.35712106]
[1750180887392,9.173e-05,103810.0,103800.0,0.45336282]
[1750180887611,9.173e-05,103810.0,103800.0,0.40452813]
[1750180888056,0.21201633,103810.0,103800.0,0.40452813]
[1750180888280,0.00972406,103810.0,103800.0,0.40452813]
[1750180888767,0.21201633,103810.0,103800.0,0.40452813]
[1750180888956,0.21201633,103810.0,103800.0,0.39489459]
[1750180889206,0.20238372,103810.0,103800.0,0.40452785]
[1750180889434,0.23128201,103810.0,103800.0,0.27938594]
[1750180889651,0.22164903,103810.0,103800.0,0.29865301]
[1750180889872,0.27044903,103810.0,103800.0,0.29865292]
[1750180890083,0.20238353,103810.0,103800.0,0.29865311]
[1750180890309,0.21201595,103810.0,103800.0,0.29865311]
[1750180890745,0.23128145,103810.0,103800.0,0.27938594]
[1750180890968,0.63243796,103810.0,103800.0,0.00404]
[1750180891196,0.68123796,103810.0,103800.0,0.00404]
[1750180891418,0.27044903,103810.0,103800.0,0.26905194]
[1750180891633,0.45072201,103810.0,103800.0,0.06674]
[1750180891850,0.44108968,103810.0,103800.0,0.06674]
[1750180892305,0.44108968,103810.0,103800.0,0.07637391]
[1750180892533,0.44108968,103810.0,103800.0,0.26905213]
[1750180892966,0.44108968,103810.0,103800.0,0.06674]
[1750180893191,0.44108959,103810.0,103800.0,0.27868594]
[1750180893622,0.44108959,103810.0,103800.0,0.29795311]
[1750180893872,0.26081633,103810.0,103800.0,0.35761431]
[1750180894087,0.00972397,103810.0,103800.0,0.30761431]
[1750180894302,9.173e-05,103810.0,103800.0,0.30761431]
[1750180894738,9.173e-05,103810.0,103800.0,0.99487714]
[1750180896058,9.173e-05,103810.0,103800.0,0.57445607]
[1750180896270,9.173e-05,103810.0,103800.0,1.00941799]
[1750180896931,9.173e-05,103810.0,103800.0,1.41961105]
[1750180897822,0.00509173,103810.0,103800.0,1.41961105]
[1750180898862,0.00909173,103810.0,103800.0,1.41961105]
[1750180900518,0.00909173,103810.0,103800.0,1.84003212]
[1750180900736,0.00909173,103810.0,103800.0,1.89003212]
[1750180901187,0.00909173,103810.0,103800.0,1.24901105]
[1750180901427,0.00909173,103810.0,103800.0,1.41953105]
[1750180901645,9.173e-05,103810.0,103800.0,0.82858998]
[1750180901863,0.00409173,103810.0,103800.0,1.41953105]
[1750180902306,9.173e-05,103810.0,103800.0,1.41953105]
[1750180903631,9.173e-05,103810.0,103800.0,1.25001105]
[1750180903879,9.173e-05,103810.0,103800.0,0.76502119]
[1750180904106,9.173e-05,103810.0,103800.0,0.91184898]
[1750180904334,9.173e-05,103810.0,103800.0,0.89730813]
[1750180904547,9.173e-05,103810.0,103800.0,1.37046311]
[1750180904778,9.173e-05,103810.0,103800.0,1.37050311]
[1750180905001,9.173e-05,103810.0,103800.0,1.36950311]
[1750180905229,0.00209173,103810.0,103800.0,1.46561233]
[1750180906333,0.00209173,103810.0,103800.0,1.29517233]
[1750180906598,0.00209173,103810.0,103800.0,1.46561233]
[1750180906819,0.00209173,103810.0,103800.0,0.55630813]
[1750180907467,0.00109173,103810.0,103800.0,0.55630813]
[1750180907701,9.173e-05,103810.0,103800.0,0.55630813]
[1750180907920,0.00209173,103810.0,103800.0,0.38586813]
[1750180908139,0.00109173,103810.0,103800.0,0.55630813]
[1750180908355,0.00309173,103810.0,103800.0,0.55630813]
[1750180908571,0.00309173,103810.0,103800.0,0.52430813]
[1750180908803,0.21701595,103810.0,103800.0,0.32749487]
[1750180909048,0.23628125,103810.0,103800.0,0.37279194]
[1750180909268,0.22664911,103810.0,103800.0,0.17048]
[1750180909480,0.22664911,103810.0,103800.0,0.19271822]
[1750180909694,0.22664911,103810.0,103800.0,0.37279213]
[1750180909695,0.22664902,103810.0,103800.0,0.37279213]
[1750180909911,0.23628237,103810.0,103800.0,0.38242576]
[1750180910136,0.23628237,103810.0,103800.0,0.38242585]
[1750180910413,0.23628237,103810.0,103800.0,4e-05]
[1750180910642,0.23628237,103810.0,103800.0,0.38242594]
[1750180911123,0.23628237,103810.0,103800.0,0.37279213]
[1750180911366,0.21701716,103810.0,103800.0,4e-05]
[1750180911607,0.25021716,103810.0,103800.0,4e-05]
[1750180912032,0.25021716,103810.0,103800.0,0.21198585]
[1750180912685,0.21701614,103810.0,103800.0,0.23125283]
[1750180912928,0.22664893,103810.0,103800.0,0.21198585]
[1750180913158,0.23628182,103810.0,103800.0,0.22161948]
[1750180913374,0.22664893,103810.0,103800.0,0.23125292]
[1750180913586,0.22664893,103810.0,103800.0,0.21198585]
[1750180913793,0.23628191,103810.0,103800.0,0.22161948]
[1750180914015,0.23628191,103810.0,103800.0,4e-05]
[1750180914241,1.30787999,103810.0,103800.0,4e-05]
[1750180914468,1.33681899,103810.0,103800.0,4e-05]
[1750180914684,2.00861066,103810.0,103800.0,4e-05]
[1750180914901,1.48481899,103810.0,103800.0,4e-05]
[1750180915129,1.51512266,103810.0,103800.0,4e-05]
[1750180915371,1.50035984,103810.0,103800.0,4e-05]
[1750180915595,1.50035984,103810.0,103800.0,0.00504]
[1750180915807,1.49735984,103810.0,103800.0,0.00504]
[1750180916239,1.49735984,103810.0,103800.0,0.00604]
[1750180916684,1.49735984,103810.0,103800.0,0.00104]
[1750180916685,1.52675656,103810.0,103800.0,0.00104]
[1750180916902,1.52675656,103810.0,103800.0,0.00504]
[1750180917552,1.56081571,103810.0,103800.0,0.00504]
[1750180917997,1.34181571,103810.0,103800.0,0.00504]
[1750180918244,1.41077571,103810.0,103800.0,0.00504]
[1750180918460,1.19181571,103810.0,103800.0,0.00504]
[1750180918891,1.41077571,103810.0,103800.0,0.00504]
[1750180919862,0.77139464,103810.0,103800.0,0.00504]
[1750180920101,1.41077571,103810.0,103800.0,0.00504]
[1750180921316,1.84573763,103810.0,103800.0,0.00504]
[1750180921756,1.99573763,103810.0,103800.0,0.00504]
[1750180922671,1.35635656,103810.0,103800.0,0.00504]
[1750180923136,1.34181571,103810.0,103800.0,0.00104]
[1750180923373,1.56073571,103810.0,103800.0,0.00204]
[1750180923587,1.56073571,103810.0,103800.0,4e-05]
[1750180923804,1.56073571,103810.0,103800.0,0.00104]
[1750180924021,1.56073571,103810.0,103800.0,0.00504]
[1750180924910,1.56073571,103810.0,103800.0,0.00404]
[1750180925126,1.56073571,103810.0,103800.0,0.00604]
[1750180925342,1.60460578,103810.0,103800.0,0.00604]
[1750180925555,1.56073571,103810.0,103800.0,0.00604]
[1750180926680,1.34181571,103810.0,103800.0,0.00604]
[1750180926892,1.41073571,103810.0,103800.0,0.00604]
[1750180927376,1.19181571,103810.0,103800.0,0.00604]
[1750180927599,1.41073571,103810.0,103800.0,0.00604]
[1750180928925,0.82003464,103810.0,103800.0,0.00604]
[1750180929148,1.37863571,103810.0,103800.0,0.00604]
[1750180929584,1.15971571,103810.0,103800.0,0.00604]
[1750180929799,1.41103571,103810.0,103800.0,0.00604]
[1750180930019,1.45490578,103810.0,103800.0,0.00604]
[1750180930248,1.41103571,103810.0,103800.0,0.00604]
[1750180931596,1.37859571,103810.0,103800.0,0.00604]
[1750180931817,1.17367112,103810.0,103800.0,0.00604]
[1750180932051,1.39923078,103810.0,103800.0,0.00204]
[1750180932825,1.39923078,103810.0,103800.0,4e-05]
[1750180933041,1.39923078,103810.0,103800.0,0.00304]
[1750180933258,1.39923078,103810.0,103800.0,0.00404]
[1750180933520,1.39923078,103810.0,103800.0,0.00104]
[1750180933756,1.39923078,103810.0,103800.0,0.00504]
[1750180933980,1.16439078,103810.0,103800.0,0.00704]
[1750180934196,1.33459078,103810.0,103800.0,0.00704]
[1750180934410,0.71457299,103810.0,103800.0,0.00704]
[1750180934629,0.56969123,103810.0,103800.0,0.00704]
[1750180934871,0.23932402,103810.0,103800.0,0.26551822]
[1750180935082,0.28082991,103810.0,103800.0,0.33251919]
[1750180935300,0.26156516,103810.0,103800.0,0.07284]
[1750180935523,0.25193255,103810.0,103800.0,0.03984]
[1750180935738,0.67235362,103810.0,103800.0,0.00704]
[1750180936172,0.70265362,103810.0,103800.0,0.00704]
[1750180936387,1.13889538,103810.0,103800.0,0.00704]
[1750180936616,1.19883338,103810.0,103800.0,0.00704]
[1750180937056,1.08889338,103810.0,103800.0,0.00704]
[1750180937305,1.30749338,103810.0,103800.0,0.00704]
[1750180937752,1.33989338,103810.0,103800.0,0.00704]
[1750180939148,1.30749338,103810.0,103800.0,0.00704]
[1750180940260,0.88703231,103810.0,103800.0,0.00704]
[1750180940943,1.30745338,103810.0,103800.0,0.00704]
[1750180941192,0.88703231,103810.0,103800.0,0.00704]
[1750180942274,0.66847231,103810.0,103800.0,0.00704]
[1750180942526,0.88699231,103810.0,103800.0,0.00704]
[1750180942965,1.30741338,103810.0,103800.0,0.00704]
[1750180943855,1.33751338,103810.0,103800.0,0.00704]
[1750180944070,0.88699231,103810.0,103800.0,0.00704]
[1750180944289,0.88599231,103810.0,103800.0,0.00704]
[1750180944508,1.13629338,103810.0,103800.0,0.00704]
[1750180944721,1.30637338,103810.0,103800.0,0.00704]
[1750180944947,0.88595231,103810.0,103800.0,0.00704]
[1750180945378,0.88595231,103810.0,103800.0,0.00452]
[1750180946500,1.30637338,103810.0,103800.0,0.00452]
[1750180947652,0.57123055,103810.0,103800.0,0.00452]
[1750180947874,0.61963055,103810.0,103800.0,0.26169822]
[1750180948097,0.028938,103810.0,103800.0,0.29059883]
[1750180948317,0.028938,103810.0,103800.0,0.80726166]
[1750180948543,0.54823122,103820.0,103810.0,0.28605749]
[1750180948755,0.55786253,103820.0,103810.0,0.28605749]
[1750180948977,0.49983122,103820.0,103810.0,0.28605749]
[1750180949195,0.70210372,103820.0,103810.0,0.28605749]
[1750180949423,0.7117354,103820.0,103810.0,0.25715966]
[1750180949641,0.72136736,103820.0,103810.0,0.26679255]
[1750180949863,0.70210381,103820.0,103810.0,0.28605758]
[1750180950115,0.71173641,103820.0,103810.0,0.0645]
[1750180950339,0.71173632,103820.0,103810.0,0.28605823]
[1750180950554,0.71173632,103820.0,103810.0,0.29569084]
[1750180950775,0.71473632,103820.0,103810.0,0.27642553]
[1750180951001,0.71673632,103820.0,103810.0,0.0645]
[1750180951224,0.22155813,103810.0,103800.0,0.25477822]
[1750180951485,0.22155813,103810.0,103800.0,0.26441203]
[1750180951714,0.01926456,103810.0,103800.0,0.28367919]
[1750180951941,0.2022918,103810.0,103800.0,0.29331245]
[1750180952161,0.7137366,103820.0,103810.0,0.27452534]
[1750180952377,0.7621366,103820.0,103810.0,0.0626]
[1750180952590,0.7631366,103820.0,103810.0,0.07223298]
[1750180953019,0.7601366,103820.0,103810.0,0.0626]
[1750180953447,0.7601366,103820.0,103810.0,0.26589264]
[1750180953667,0.76013586,103820.0,103810.0,0.28515785]
[1750180953918,0.71173549,103820.0,103810.0,0.29479027]
[1750180954144,0.70210381,103820.0,103810.0,0.28615785]
[1750180954379,0.70210381,103820.0,103810.0,0.3919394]
[1750180954380,0.49983122,103820.0,103810.0,0.3919394]
[1750180954605,0.26991533,103830.0,103820.0,0.28623679]
[1750180954828,0.27954636,103830.0,103820.0,0.28623688]
[1750180955308,0.00963029,103830.0,103820.0,0.52906866]
[1750180955752,0.01926067,103830.0,103820.0,0.50980613]
[1750180955976,0.02889124,103830.0,103820.0,0.55733753]
[1750180956203,0.01926067,103830.0,103820.0,0.55733753]